lending/lending_fUSD_20251218
["ID","MTS","AMOUNT","RATE_DAILY","PERIOD"]
[399006541,1766065845412,-480.97,0.00029123,2]
[399006542,1766065845421,-150.0,0.00029397,2]
[399006543,1766065845430,-150.0,0.00029397,2]
[399006544,1766065845440,-151.0,0.00029492,7]
[399006545,1766065845449,-359.98,0.00029492,30]
[399006546,1766065845458,-1000.0,0.000295,2]
[399006547,1766065845467,-256.0,0.00029968,120]
[399006548,1766065845476,-1000.0,0.00030121,2]
[399006549,1766065845486,-800.0,0.00030137,16]
[399006550,1766065845495,-588.4,0.00030137,27]
[399006551,1766065845504,-215.51808548,0.00030137,20]
[399006552,1766065845514,-150.0,0.000302,2]
[399006553,1766065845523,-300.0,0.00031041,2]
[399006554,1766065845533,-300.0,0.00031041,2]
[399006555,1766065845542,-1107.1,0.00031041,2]
[399006556,1766065845551,-150.0,0.00031041,2]
[399006557,1766065845561,-150.0,0.00031041,2]
[399006558,1766065845572,-150.0,0.00031041,2]
[399006559,1766065845582,-150.0,0.00031041,2]
[399006560,1766065845591,-464.41,0.00031041,2]
[399006561,1766065845601,-170.56,0.00031041,2]
[399006562,1766065845612,-464.41,0.00031041,2]
[399006563,1766065845623,-178.33,0.00031041,2]
[399006564,1766065845632,-464.41,0.00031041,2]
[399006565,1766065845641,-170.56,0.00031041,2]
[399006566,1766065845650,-150.0,0.00031041,2]
[399006567,1766065845660,-150.0,0.00031041,2]
[399006568,1766065845669,-178.33,0.00031041,2]
[399006569,1766065845678,-170.56,0.00031041,2]
[399006570,1766065845688,-150.0,0.00031041,2]
[399006571,1766065845697,-150.0,0.00031041,2]
[399006572,1766065845706,-928.82,0.00031041,2]
[399006573,1766065845716,-170.56,0.00031041,2]
[399006574,1766065845725,-150.0,0.00031041,2]
[399006575,1766065845735,-178.33,0.00031041,2]
[399006576,1766065845744,-170.56,0.00031041,2]
[399006577,1766065845753,-150.0,0.00031041,2]
[399006578,1766065845762,-178.33,0.00031041,2]
[399006579,1766065845772,-553.55,0.00031041,2]
[399006580,1766065845781,-178.33,0.00031041,2]
[399006581,1766065845790,-300.0,0.00031041,2]
[399006582,1766065845799,-170.56,0.00031041,2]
[399006583,1766065845809,-178.13,0.00031041,2]
[399006584,1766065845819,-170.42,0.00031041,2]
[399006585,1766065845829,-150.0,0.00031041,2]
[399006586,1766065845838,-150.0,0.00031041,2]
[399006587,1766065845847,-150.0,0.00031041,2]
[399006588,1766065845856,-194.6,0.000312,4]
[399006589,1766065845866,-213.84,0.000313,14]
[399006590,1766065845879,-150.0,0.00031589,2]
[399006592,1766065845888,-872.15,0.00031689,2]
[399006593,1766065845899,-151.0,0.00032,2]
[399006594,1766065845911,-151.0,0.00032,2]
[399006595,1766065845920,-324.74,0.0003268,2]
[399006597,1766065845930,-4005.09,0.00032815,2]
[399006598,1766065845942,-170.391027,0.00032877,31]
[399006599,1766065845951,-294.368981,0.00032877,31]
[399006600,1766065845961,-296.018319,0.00032877,31]
[399006601,1766065845971,-151.0,0.00032877,31]
[399006602,1766065845981,-151.0,0.00032877,31]
[399006603,1766065845991,-151.0,0.00032877,31]
[399006604,1766065846000,-151.0,0.00032877,31]
[399006605,1766065846010,-209.06585,0.00032877,31]
[399006606,1766065846019,-638.361053,0.00032877,31]
[399006607,1766065846028,-638.361053,0.00032877,31]
[399006608,1766065846038,-638.361053,0.00032877,31]
[399006609,1766065846047,-638.361053,0.00032877,31]
[399006610,1766065846056,-638.361053,0.00032877,31]
[399006611,1766065846065,-638.361053,0.00032877,31]
[399006612,1766065846075,-638.361053,0.00032877,31]
[399006613,1766065846084,-638.361053,0.00032877,31]
[399006614,1766065846093,-638.361053,0.00032877,31]
[399006615,1766065846102,-638.361053,0.00032877,31]
[399006616,1766065846111,-638.361053,0.00032877,31]
[399006617,1766065846122,-638.361053,0.00032877,31]
[399006618,1766065846131,-638.361053,0.00032877,31]
[399006619,1766065846141,-638.361053,0.00032877,31]
[399006620,1766065846150,-638.361053,0.00032877,31]
[399006621,1766065846159,-638.361053,0.00032877,31]
[399006622,1766065846168,-151.0,0.00032877,31]
[399006623,1766065846177,-151.0,0.00032877,31]
[399006624,1766065846186,-638.361053,0.00032877,31]
[399006625,1766065846195,-638.361053,0.00032877,31]
[399006626,1766065846204,-638.361053,0.00032877,31]
[399006627,1766065846214,-638.36105,0.00032877,31]
[399006628,1766065846223,-461.9882431,0.00033,5]
[399006629,1766065846232,-250.0,0.00033,30]
[399006630,1766065846242,-4100.0,0.00033,120]
[399006631,1766065846251,-225.64,0.00033165,2]
[399006632,1766065846260,-538.99673988,0.00033962,2]
[399006633,1766065846270,-500.0,0.00034289,60]
[399006634,1766065846279,-500.0,0.00034289,60]
[399006635,1766065846288,-500.0,0.00034289,60]
[399006636,1766065846297,-500.0,0.00034289,30]
[399006637,1766065846306,-500.0,0.00034289,60]
[399006638,1766065846314,-500.0,0.00034289,60]
[399006639,1766065846324,-17907.64354244,0.0003429,7]
[399006640,1766065846333,-359.98,0.00034327,30]
[399006641,1766065846342,-150.0,0.00034329,2]
[399006642,1766065846351,-150.0,0.00034329,2]
[399006643,1766065846360,-150.0,0.00034329,2]
[399006644,1766065846369,-150.87,0.00034329,2]
[399006645,1766065846380,-150.0,0.00034877,2]
[399006646,1766065846389,-151.0,0.00035,2]
[399006647,1766065846398,-151.0,0.00035,2]
[399006648,1766065846407,-150.0,0.00035,2]
[399006649,1766065846416,-1000.0,0.00035,2]
[399006650,1766065846426,-152.0,0.00035115,3]
[399006651,1766065846435,-250.0,0.000355,30]
[399006652,1766065846444,-500.0,0.00035616,7]
[399006653,1766065846453,-500.0,0.00035616,7]
[399006654,1766065846463,-431.4,0.00035616,93]
[399006655,1766065846472,-348.9,0.00035616,36]
[399006656,1766065846481,-600.0,0.00035616,77]
[399006657,1766065846491,-214.2,0.00035616,90]
[399006658,1766065846500,-441.3,0.00035616,101]
[399006659,1766065846509,-161.6385641,0.00035616,113]
[399006660,1766065846519,-1002.0,0.00036,14]
[399006661,1766065846528,-500.0,0.00036559,60]
[399006662,1766065846538,-500.0,0.00036794,60]
[399006663,1766065846547,-500.0,0.00036794,60]
[399006664,1766065846556,-1079.1699,0.00036886,10]
[399006665,1766065846565,-173.91728075,0.00036976,2]
[399006666,1766065846574,-150.0,0.00036986,7]
[399006667,1766065846583,-150.0,0.00036986,7]
[399006668,1766065846592,-150.0,0.00036986,7]
[399006669,1766065846601,-150.0,0.00036986,7]
[399006670,1766065846610,-150.0,0.00036986,7]
[399006671,1766065846619,-150.0,0.00036986,7]
[399006672,1766065846630,-150.0,0.00036986,7]
[399006673,1766065846639,-150.4783543,0.00036986,7]
[399006674,1766065846648,-150.41457453,0.00036986,7]
[399006675,1766065846658,-150.0,0.00036986,7]
[399006676,1766065846668,-150.0,0.00036986,7]
[399006677,1766065846677,-150.30840032,0.00036986,7]
[399006678,1766065846686,-150.0,0.00036986,7]
[399006679,1766065846695,-150.0,0.00036986,7]
[399006680,1766065846705,-1000.0,0.00037111,7]
[399006681,1766065846714,-150.0,0.0003726,7]
[399006682,1766065846723,-150.0,0.0003726,7]
[399006683,1766065846732,-150.0,0.00037397,7]
[399006684,1766065846741,-150.0,0.000375,7]
[399006685,1766065846750,-150.0,0.00037534,7]
[399006686,1766065846760,-150.0,0.00037534,7]
[399006687,1766065846769,-150.0,0.00037573,7]
[399006688,1766065846780,-1000.0,0.00037671,7]
[399006689,1766065846790,-150.0,0.00037671,7]
[399006690,1766065846799,-150.0,0.00037671,7]
[399006691,1766065846808,-150.0,0.00037808,7]
[399006692,1766065846818,-150.0,0.00037808,7]
[399006693,1766065846827,-150.0,0.00037808,7]
[399006694,1766065846837,-150.0,0.00037808,2]
[399006695,1766065846846,-151.0,0.00038,7]
[399006696,1766065846855,-151.0,0.00038,7]
[399006697,1766065846865,-250.0,0.00038,45]
[399006698,1766065846876,-150.0,0.00038014,7]
[399006699,1766065846886,-1040.65765088,0.00038029,7]
[399006700,1766065846896,-150.0,0.00038082,7]
[399006701,1766065846907,-150.0,0.00038082,7]
[399006702,1766065846917,-150.0,0.0003816,7]
[399006703,1766065846928,-150.0,0.00038219,7]
[399006704,1766065846939,-300.0,0.00038288,2]
[399006705,1766065846949,-1000.0,0.00038327,7]
[399006706,1766065846958,-500.0,0.00038356,120]
[399006707,1766065846967,-500.0,0.00038356,120]
[399006708,1766065846978,-3199.15,0.00038356,120]
[399006709,1766065846988,-150.0,0.00038356,7]
[399006710,1766065846997,-150.0,0.00038356,7]
[399006711,1766065847006,-150.0,0.00038356,7]
[399006712,1766065847015,-150.0,0.00038356,7]
[399006713,1766065847024,-323.39,0.00038493,120]
[399006714,1766065847033,-318.85341188,0.000385,14]
[399006715,1766065847043,-150.0,0.00038527,7]
[399006716,1766065847052,-150.0,0.0003863,7]
[399006717,1766065847061,-150.0,0.0003863,7]
[399006718,1766065847071,-150.0,0.0003863,7]
[399006719,1766065847080,-150.0,0.00038748,7]
[399006720,1766065847090,-1000.0,0.00038806,7]
[399006721,1766065847099,-2000.0,0.00038888,120]
[399006722,1766065847108,-150.0,0.00038904,7]
[399006723,1766065847117,-150.0,0.00038904,7]
[399006724,1766065847128,-150.0,0.00039041,7]
[399006725,1766065847137,-150.0,0.00039041,7]
[399006726,1766065847147,-150.0,0.00039041,7]
[399006727,1766065847156,-150.0,0.00039041,7]
[399006728,1766065847166,-150.0,0.00039041,7]
[399006729,1766065847175,-155.086026,0.000391,120]
[399006730,1766065847184,-359.98,0.00039162,120]
[399006731,1766065847194,-150.0,0.00039178,7]
[399006732,1766065847204,-150.0,0.00039178,7]
[399006733,1766065847213,-150.0,0.00039335,7]
[399006734,1766065847223,-500.0,0.00039424,120]
[399006736,1766065847232,-500.0,0.00039424,120]
[399006737,1766065847242,-500.0,0.00039424,120]
[399006739,1766065847251,-500.0,0.00039424,120]
[399006742,1766065847261,-500.0,0.00039424,120]
[399006744,1766065847270,-3199.15,0.00039452,120]
[399006745,1766065847280,-150.0,0.00039452,7]
[399006748,1766065847291,-150.0,0.00039452,7]
[399006750,1766065847300,-150.0,0.00039452,7]
[399006751,1766065847310,-170.56,0.00039452,2]
[399006775,1766065847616,-178.2,0.000395,30]
[399006777,1766065847628,-150.0,0.00039555,7]
[399006779,1766065847637,-225.64,0.00039654,2]
[399006781,1766065847646,-150.0,0.00039726,7]
[399006783,1766065847655,-150.0,0.00039726,7]
[399006785,1766065847665,-150.0,0.00039726,7]
[399006787,1766065847674,-150.0,0.00039726,7]
[399006789,1766065847683,-198.77897317,0.00039817,20]
[399006791,1766065847692,-150.0,0.00039863,7]
[399006793,1766065847701,-150.0,0.00039865,7]
[399006795,1766065847710,-411034.446488,0.0003988,2]
[399006797,1766065847719,-334.21353319,0.000399,2]
[399006799,1766065847728,-150.0,0.00039922,7]
[399006801,1766065847738,-150.0,0.0004,7]
[399006803,1766065847747,-150.0,0.0004,7]
[399006805,1766065847756,-2300.26301726,0.0004,2]
[399006807,1766065847764,-545.0,0.0004,120]
[399006809,1766065847773,-182.5,0.0004,120]
[399006811,1766065847782,-844.13745707,0.0004,30]
[399006813,1766065847791,-302.80900132,0.0004,30]
[399006816,1766065847800,-29707.0,0.0004,30]
[399006818,1766065847809,-2000.0,0.0004,120]
[399006820,1766065847819,-2000.0,0.0004,120]
[399006822,1766065847827,-2000.0,0.0004,120]
[399006824,1766065847836,-2000.0,0.0004,120]
[399006826,1766065847845,-2000.0,0.0004,120]
[399006828,1766065847854,-1000.0,0.0004,2]
[399006830,1766065847863,-500.26254798,0.0004,2]
[399006832,1766065847874,-84999.999998,0.0004,30]
[399006833,1766065847883,-500.0,0.0004,120]
[399006836,1766065847895,-500.0,0.0004,120]
[399006837,1766065847904,-500.0,0.0004,120]
[399006839,1766065847914,-500.0,0.0004,120]
[399006841,1766065847923,-500.0,0.0004,120]
[399006843,1766065847932,-190.10506641,0.0004,120]
[399006845,1766065847941,-262.88973739,0.0004,120]
[399006848,1766065847951,-500.0,0.0004,120]
[399006850,1766065847962,-500.0,0.0004,120]
[399006851,1766065847972,-500.0,0.0004,120]
[399006852,1766065847981,-150.0,0.00040068,7]
[399006853,1766065847990,-1000.0,0.0004008,7]
[399006854,1766065847998,-150.0,0.0004025,7]
[399006855,1766065848008,-150.0,0.00040274,7]
[399006856,1766065848017,-150.0,0.00040274,7]
[399006857,1766065848026,-150.0,0.00040274,7]
[399006858,1766065848035,-150.0,0.00040411,7]
[399006859,1766065848044,-150.0,0.00040411,7]
[399006860,1766065848053,-150.0,0.00040412,7]
[399006861,1766065848062,-152.0,0.00040431,4]
[399006862,1766065848070,-150.0,0.00040493,7]
[399006863,1766065848079,-250.0,0.000405,45]
[399006864,1766065848089,-150.0,0.00040509,7]
[399006866,1766065848098,-3199.15,0.00040547,120]
[399006867,1766065848107,-150.0,0.00040548,7]
[399006868,1766065848117,-150.0,0.00040548,7]
[399006869,1766065848127,-150.0,0.00040582,7]
[399006870,1766065848136,-150.0,0.00040685,7]
[399006871,1766065848145,-5867.0,0.000407,117]
[399006872,1766065848156,-300.0,0.00040712,60]
[399006873,1766065848166,-152.77923799,0.00040771,7]
[399006874,1766065848175,-150.0,0.00040822,7]
[399006875,1766065848185,-150.0,0.00040822,7]
[399006876,1766065848194,-678.23572394,0.000409,35]
[399006877,1766065848203,-150.0,0.00040912,20]
[399006878,1766065848213,-500.0,0.00040913,14]
[399006879,1766065848222,-500.0,0.00040913,14]
[399006880,1766065848231,-500.0,0.00040913,14]
[399006881,1766065848241,-338.43751118,0.00040995,2]
[399006882,1766065848249,-16440.40795399,0.00040995,2]
[399006883,1766065848259,-338.43751118,0.00040996,2]
[399006884,1766065848268,-500.0,0.00040997,120]
[399006885,1766065848278,-338.43751118,0.00040997,2]
[399006886,1766065848288,-11512.01559378,0.00040998,2]
[399006887,1766065848304,-456.69562205,0.00040998,2]
[399006888,1766065848316,-4471.69673815,0.00040998,2]
[399006889,1766065848325,-338.43751118,0.00040998,2]
[399006890,1766065848335,-338.43751118,0.00040999,2]
[399006891,1766065848344,-1039.46683306,0.00041,2]
[399006892,1766065848354,-16440.40795398,0.00041,2]
[399006893,1766065848363,-2241.8581597,0.00041,30]
[399006894,1766065848372,-250.0,0.00041,45]
[399006895,1766065848383,-250.0,0.00041,45]
[399006896,1766065848393,-250.0,0.00041,45]
[399006897,1766065848403,-250.0,0.00041,45]
[399006898,1766065848412,-250.0,0.00041,45]
[399006899,1766065848421,-250.0,0.00041,45]
[399006900,1766065848430,-250.0,0.00041,45]
[399006901,1766065848439,-234.82497314,0.00041,30]
[399006902,1766065848459,-237.78635018,0.00041,2]
[399006903,1766065848469,-1059.49508016,0.00041,120]
[399006904,1766065848479,-1059.49508016,0.00041,120]
[399006905,1766065848489,-1059.49508016,0.00041,120]
[399006906,1766065848499,-1059.49508016,0.00041,120]
[399006907,1766065848509,-1059.49508016,0.00041,120]
[399006908,1766065848519,-1059.49508016,0.00041,120]
[399006909,1766065848528,-1059.49508016,0.00041,120]
[399006910,1766065848538,-1059.49508016,0.00041,120]
[399006911,1766065848547,-1059.49508016,0.00041,120]
[399006912,1766065848556,-1059.49508016,0.00041,120]
[399006913,1766065848565,-1059.49508016,0.00041,120]
[399006914,1766065848575,-1059.49508016,0.00041,120]
[399006915,1766065848584,-1059.49508016,0.00041,120]
[399006916,1766065848594,-1059.49508016,0.00041,120]
[399006917,1766065848603,-1059.49508016,0.00041,120]
[399006918,1766065848612,-1059.49508016,0.00041,120]
[399006919,1766065848621,-1059.49508016,0.00041,120]
[399006920,1766065848633,-1059.49508016,0.00041,120]
[399006921,1766065848642,-1059.49508016,0.00041,120]
[399006922,1766065848652,-1059.49,0.00041,120]
[399006923,1766065848661,-2472.15518703,0.00041,120]
[399006924,1766065848670,-2472.15518703,0.00041,120]
[399006925,1766065848679,-2472.15518703,0.00041,120]
[399006926,1766065848689,-2472.15518703,0.00041,120]
[399006927,1766065848698,-2472.15518703,0.00041,120]
[399006928,1766065848707,-2472.15518703,0.00041,120]
[399006929,1766065848717,-2472.15518703,0.00041,120]
[399006930,1766065848726,-2472.15518703,0.00041,120]
[399006931,1766065848735,-2472.15518703,0.00041,120]
[399006932,1766065848744,-2472.15518703,0.00041,120]
[399006933,1766065848754,-2472.15518703,0.00041,120]
[399006934,1766065848764,-2472.15518703,0.00041,120]
[399006935,1766065848774,-2472.15518703,0.00041,120]
[399006936,1766065848784,-2472.15518703,0.00041,120]
[399006937,1766065848793,-2472.15518703,0.00041,120]
[399006938,1766065848803,-2472.15518703,0.00041,120]
[399006939,1766065848814,-2472.15518703,0.00041,120]
[399006940,1766065848824,-2472.15518703,0.00041,120]
[399006941,1766065848834,-2472.15518703,0.00041,120]
[399006942,1766065848843,-2472.15,0.00041,120]
[399006943,1766065848853,-888.91401034,0.00041,120]
[399006944,1766065848862,-888.91401034,0.00041,120]
[399006945,1766065848872,-888.91401034,0.00041,120]
[399006946,1766065848882,-888.91401034,0.00041,120]
[399006947,1766065848892,-888.91401034,0.00041,120]
[399006948,1766065848902,-888.91401034,0.00041,120]
[399006949,1766065848914,-888.91401034,0.00041,120]
[399006950,1766065848923,-888.91401034,0.00041,120]
[399006951,1766065848932,-888.91401034,0.00041,120]
[399006952,1766065848942,-888.91401034,0.00041,120]
[399006953,1766065848955,-888.91401034,0.00041,120]
[399006954,1766065848964,-888.91401034,0.00041,120]
[399006955,1766065848974,-888.91401034,0.00041,120]
[399006956,1766065848985,-888.91401034,0.00041,120]
[399006957,1766065848995,-888.91401034,0.00041,120]
[399006958,1766065849005,-888.91401034,0.00041,120]
[399006959,1766065849016,-888.91401034,0.00041,120]
[399006960,1766065849029,-888.91401034,0.00041,120]
[399006961,1766065849038,-888.91401034,0.00041,120]
[399006962,1766065849048,-888.91,0.00041,120]
[399006963,1766065849057,-2074.1326908,0.00041,120]
[399006964,1766065849067,-2074.1326908,0.00041,120]
[399006965,1766065849076,-2074.1326908,0.00041,120]
[399006966,1766065849086,-2074.1326908,0.00041,120]
[399006967,1766065849095,-2074.1326908,0.00041,120]
[399006968,1766065849107,-2074.1326908,0.00041,120]
[399006969,1766065849118,-2074.1326908,0.00041,120]
[399006970,1766065849130,-2074.1326908,0.00041,120]
[399006971,1766065849140,-2074.1326908,0.00041,120]
[399006972,1766065849150,-2074.1326908,0.00041,120]
[399006973,1766065849162,-2074.1326908,0.00041,120]
[399006974,1766065849172,-1423.7251013,0.00041,120]
[399006975,1766065849186,-650.4075895,0.00041,120]
[399006976,1766065849196,-2074.1326908,0.00041,120]
[399006977,1766065849209,-2074.1326908,0.00041,120]
[399006978,1766065849219,-2074.1326908,0.00041,120]
[399006979,1766065849228,-2074.1326908,0.00041,120]
[399006980,1766065849238,-2074.1326908,0.00041,120]
[399006981,1766065849248,-2074.1326908,0.00041,120]
[399006982,1766065849258,-2074.1326908,0.00041,120]
[399006983,1766065849268,-2074.13,0.00041,120]
[399006984,1766065849278,-430.58743142,0.00041,120]
[399006985,1766065849287,-430.58743142,0.00041,120]
[399006986,1766065849296,-430.58743142,0.00041,120]
[399006987,1766065849305,-430.58743142,0.00041,120]
[399006988,1766065849315,-430.58743142,0.00041,120]
[399006989,1766065849324,-430.58743142,0.00041,120]
[399006990,1766065849334,-430.58743142,0.00041,120]
[399006991,1766065849343,-430.58743142,0.00041,120]
[399006992,1766065849352,-430.58743142,0.00041,120]
[399006993,1766065849362,-430.58743142,0.00041,120]
[399006994,1766065849371,-430.58743142,0.00041,120]
[399006995,1766065849383,-430.58743142,0.00041,120]
[399006996,1766065849392,-430.58743142,0.00041,120]
[399006997,1766065849402,-430.58743142,0.00041,120]
[399006998,1766065849411,-430.58743142,0.00041,120]
[399006999,1766065849420,-430.58743142,0.00041,120]
[399007000,1766065849430,-430.58743142,0.00041,120]
[399007001,1766065849440,-430.58743142,0.00041,120]
[399007002,1766065849449,-430.58743142,0.00041,120]
[399007003,1766065849458,-430.58,0.00041,120]
[399007004,1766065849468,-1004.70400665,0.00041,120]
[399007005,1766065849478,-1004.70400665,0.00041,120]
[399007006,1766065849488,-1004.70400665,0.00041,120]
[399007007,1766065849498,-1004.70400665,0.00041,120]
[399007008,1766065849507,-1004.70400665,0.00041,120]
[399007009,1766065849517,-1004.70400665,0.00041,120]
[399007010,1766065849526,-1004.70400665,0.00041,120]
[399007011,1766065849536,-1004.70400665,0.00041,120]
[399007012,1766065849546,-1004.70400665,0.00041,120]
[399007013,1766065849556,-1004.70400665,0.00041,120]
[399007014,1766065849567,-1004.70400665,0.00041,120]
[399007015,1766065849576,-1004.70400665,0.00041,120]
[399007016,1766065849586,-1004.70400665,0.00041,120]
[399007017,1766065849595,-1004.70400665,0.00041,120]
[399007018,1766065849605,-1004.70400665,0.00041,120]
[399007019,1766065849616,-1004.70400665,0.00041,120]
[399007020,1766065849627,-1004.70400665,0.00041,120]
[399007021,1766065849637,-1004.70400665,0.00041,120]
[399007022,1766065849647,-1004.70400665,0.00041,120]
[399007023,1766065849656,-1004.7,0.00041,120]
[399007024,1766065849667,-1039.46683306,0.00041,2]
[399007025,1766065849677,-338.43751118,0.00041,2]
[399007026,1766065849686,-202.5810054,0.00041,8]
[399007027,1766065849695,-7815.90562719,0.00041,2]
[399007028,1766065849705,-756.58125669,0.00041,2]
[399007029,1766065849715,-4769.87881113,0.00041,2]
[399007030,1766065849725,-1330.0,0.0004102,30]
[399007031,1766065849735,-800.0,0.0004107,15]
[399007032,1766065849745,-800.0,0.0004107,15]
[399007033,1766065849755,-800.0,0.0004107,15]
[399007034,1766065849765,-800.0,0.0004107,15]
[399007035,1766065849774,-800.0,0.0004107,15]
[399007036,1766065849784,-800.0,0.0004107,15]
[399007037,1766065849793,-800.0,0.0004107,15]
[399007038,1766065849803,-800.0,0.0004107,15]
[399007039,1766065849812,-500.0,0.00041073,5]
[399007040,1766065849821,-500.0,0.00041073,5]
[399007041,1766065849831,-333.88776573,0.00041073,5]
[399007042,1766065849840,-361.14099094,0.0004108,120]
[399007043,1766065849850,-173.91728075,0.0004109,7]
[399007044,1766065849859,-500.0,0.00041094,60]
[399007045,1766065849868,-500.0,0.00041094,60]
[399007046,1766065849882,-500.0,0.00041094,60]
[399007047,1766065849892,-515.45477873,0.00041094,30]
[399007048,1766065849901,-500.0,0.00041094,60]
[399007049,1766065849913,-500.0,0.00041094,60]
[399007050,1766065849923,-500.0,0.00041094,120]
[399007051,1766065849933,-500.0,0.00041094,120]
[399007052,1766065849945,-500.0,0.00041094,120]
[399007053,1766065849955,-167.92919184,0.00041094,120]
[399007054,1766065849965,-500.0,0.00041094,120]
[399007055,1766065849977,-500.0,0.00041094,120]
[399007056,1766065849988,-500.0,0.00041094,120]
[399007057,1766065849999,-500.0,0.00041094,120]
[399007058,1766065850009,-500.0,0.00041094,120]
[399007059,1766065850020,-500.0,0.00041094,120]
[399007060,1766065850031,-160.01975608,0.00041094,120]
[399007061,1766065850041,-500.0,0.00041095,7]
[399007062,1766065850051,-500.0,0.00041095,8]
[399007063,1766065850062,-500.0,0.00041095,8]
[399007064,1766065850072,-500.0,0.00041095,8]
[399007065,1766065850086,-500.0,0.00041095,8]
[399007066,1766065850096,-500.0,0.00041095,8]
[399007067,1766065850107,-500.0,0.00041095,8]
[399007068,1766065850116,-500.0,0.00041095,8]
[399007069,1766065850131,-500.0,0.00041095,8]
[399007070,1766065850143,-405.67146496,0.00041095,8]
[399007071,1766065850153,-500.0,0.00041095,5]
[399007072,1766065850163,-500.0,0.00041095,5]
[399007073,1766065850173,-500.0,0.00041095,5]
[399007074,1766065850183,-500.0,0.00041095,5]
[399007075,1766065850193,-500.0,0.00041095,5]
[399007076,1766065850203,-500.0,0.00041095,5]
[399007077,1766065850212,-500.0,0.00041095,5]
[399007078,1766065850222,-500.0,0.00041095,5]
[399007079,1766065850232,-500.0,0.00041095,5]
[399007080,1766065850242,-500.0,0.00041095,5]
[399007081,1766065850251,-500.0,0.00041095,5]
[399007082,1766065850261,-500.0,0.00041095,5]
[399007083,1766065850271,-500.0,0.00041095,5]
[399007084,1766065850281,-500.0,0.00041095,5]
[399007085,1766065850291,-500.0,0.00041095,5]
[399007086,1766065850301,-500.0,0.00041095,5]
[399007087,1766065850310,-500.0,0.00041095,5]
[399007088,1766065850321,-500.0,0.00041095,5]
[399007089,1766065850331,-500.0,0.00041095,5]
[399007090,1766065850340,-500.0,0.00041095,5]
[399007091,1766065850350,-500.0,0.00041095,5]
[399007092,1766065850359,-500.0,0.00041095,5]
[399007093,1766065850368,-500.0,0.00041095,5]
[399007094,1766065850381,-461.23518938,0.00041095,5]
[399007095,1766065850391,-500.0,0.00041095,2]
[399007096,1766065850400,-321.19016507,0.00041095,2]
[399007097,1766065850409,-500.0,0.00041095,14]
[399007098,1766065850419,-500.0,0.00041095,14]
[399007099,1766065850428,-500.0,0.00041095,14]
[399007100,1766065850437,-500.0,0.00041095,14]
[399007101,1766065850446,-500.0,0.00041095,14]
[399007102,1766065850455,-500.0,0.00041095,14]
[399007103,1766065850465,-500.0,0.00041095,14]
[399007104,1766065850474,-500.0,0.00041095,14]
[399007105,1766065850483,-500.0,0.00041095,14]
[399007106,1766065850493,-500.0,0.00041095,14]
[399007107,1766065850502,-439.2254286,0.00041095,14]
[399007108,1766065850511,-1668.05259583,0.00041095,7]
[399007109,1766065850521,-500.0,0.00041095,14]
[399007110,1766065850531,-467.70787859,0.00041095,14]
[399007111,1766065850540,-538.28015637,0.00041095,14]
[399007112,1766065850550,-501.31380085,0.00041095,14]